fUSD/lending_fUSD_20250530
["ID","MTS","AMOUNT","RATE_DAILY","PERIOD"]
[363126532,1748592643866,-3293.54620311,0.00021917,2]
[363126533,1748592643876,-502.86583596,0.00021917,2]
[363126534,1748592643887,-805.21,0.00021917,2]
[363126535,1748592643897,-420.0,0.00021917,2]
[363126536,1748592643907,-420.0,0.00021917,2]
[363126537,1748592643918,-420.0,0.00021917,2]
[363126538,1748592644009,-816.0,0.00021917,2]
[363126539,1748592644018,-705.96,0.00021917,2]
[363126540,1748592644027,-420.0,0.00021917,2]
[363126541,1748592644035,-737.31,0.00021917,2]
[363126542,1748592644043,-420.0,0.00021917,2]
[363126543,1748592644051,-500.0,0.00021917,2]
[363126544,1748592644059,-500.0,0.00021917,2]
[363126545,1748592644068,-500.0,0.00021917,2]
[363126546,1748592644077,-6637.73,0.00021917,2]
[363126547,1748592644087,-4460.6,0.00021917,2]
[363126548,1748592644098,-420.0,0.00021917,2]
[363126549,1748592644107,-7118.61,0.00021917,2]
[363126550,1748592644116,-32862.66,0.00021917,2]
[363126551,1748592644126,-426.5,0.00021917,2]
[363126552,1748592644135,-1488.51,0.00021917,2]
[363126553,1748592644144,-500.0,0.00021917,2]
[363126554,1748592644154,-606.43,0.00021917,2]
[363126555,1748592644163,-420.0,0.00021917,2]
[363126556,1748592644172,-1459.11,0.00021917,2]
[363126557,1748592644180,-500.0,0.00021917,2]
[363126558,1748592644189,-500.0,0.00021917,2]
[363126559,1748592644199,-1962.22,0.00021917,2]
[363126560,1748592644208,-1023.89,0.00021917,2]
[363126561,1748592644218,-1275.04,0.00021917,2]
[363126562,1748592644228,-685.13,0.00021917,2]
[363126563,1748592644239,-501.66471748,0.00021917,2]
[363126564,1748592644249,-420.0,0.00021917,2]
[363126565,1748592644259,-420.0,0.00021917,2]
[363126566,1748592644268,-500.0,0.00021917,2]
[363126567,1748592644277,-420.0,0.00021917,2]
[363126568,1748592644286,-500.0,0.00021917,2]
[363126569,1748592644295,-1000.0,0.00021917,2]
[363126570,1748592644304,-163.70265355,0.00021917,2]
[363126571,1748592644314,-420.0,0.00021917,2]
[363126572,1748592644323,-612.46,0.00021917,2]
[363126573,1748592644333,-1195.25,0.00021917,2]
[363126574,1748592644342,-1579.74,0.00021917,2]
[363126575,1748592644351,-3290.51,0.00021917,2]
[363126576,1748592644361,-973.06,0.00021917,2]
[363126577,1748592644370,-420.0,0.00021917,2]
[363126578,1748592644380,-420.0,0.00021917,2]
[363126579,1748592644389,-1651.91,0.00021917,2]
[363126580,1748592644400,-529.1,0.00021917,2]
[363126581,1748592644409,-420.0,0.00021917,2]
[363126582,1748592644419,-2090.15,0.00021917,2]
[363126583,1748592644428,-665.69,0.00021917,2]
[363126584,1748592644437,-420.0,0.00021917,2]
[363126585,1748592644447,-135105.76,0.00021917,2]
[363126586,1748592644456,-420.0,0.00021917,2]
[363126587,1748592644466,-1255.47,0.00021917,2]
[363126588,1748592644475,-864.09,0.00021917,2]
[363126589,1748592644485,-425.35899265,0.00021917,2]
[363126590,1748592644494,-500.0,0.00021917,2]
[363126591,1748592644504,-420.0,0.00021917,2]
[363126592,1748592644513,-424.2585971,0.00021917,2]
[363126593,1748592644523,-568.64442179,0.00021917,2]
[363126594,1748592644532,-1831.69,0.00021917,2]
[363126595,1748592644541,-708.68,0.00021917,2]
[363126596,1748592644550,-420.0,0.00021917,2]
[363126597,1748592644559,-500.0,0.00021917,2]
[363126598,1748592644569,-420.0,0.00021917,2]
[363126599,1748592644578,-655.77,0.00021917,2]
[363126600,1748592644587,-877.0,0.00021917,2]
[363126601,1748592644596,-500.0,0.00021917,2]
[363126602,1748592644606,-2222.91,0.00021917,2]
[363126603,1748592644615,-504.06406393,0.00021917,2]
[363126604,1748592644624,-5515.56,0.00021917,2]
[363126605,1748592644634,-513.97,0.00021917,2]
[363126606,1748592644643,-888.71,0.00021917,2]
[363126607,1748592644653,-281.85046119,0.00021917,2]
[363126608,1748592644662,-468.84,0.00021917,2]
[363126609,1748592644671,-1772.85,0.00021917,2]
[363126610,1748592644680,-3275.94,0.00021917,2]
[363126611,1748592644691,-420.0,0.00021917,2]
[363126612,1748592644705,-420.0,0.00021917,2]
[363126613,1748592644714,-1462.96,0.00021917,2]
[363126614,1748592644724,-659.71,0.00021917,2]
[363126615,1748592644735,-538.09,0.00021917,2]
[363126616,1748592644744,-420.0,0.00021917,2]
[363126617,1748592644754,-899.0,0.00021917,2]
[363126618,1748592644763,-500.0,0.00021917,2]
[363126619,1748592644774,-982.62,0.00021917,2]
[363126620,1748592644783,-453.57,0.00021917,2]
[363126621,1748592644792,-597.22,0.00021917,2]
[363126622,1748592644801,-743.1,0.00021917,2]
[363126623,1748592644810,-1848.11,0.00021917,2]
[363126624,1748592644820,-420.0,0.00021917,2]
[363126625,1748592644829,-420.0,0.00021917,2]
[363126626,1748592644839,-420.0,0.00021917,2]
[363126627,1748592644848,-420.0,0.00021917,2]
[363126628,1748592644858,-1474.14,0.00021917,2]
[363126629,1748592644868,-420.0,0.00021917,2]
[363126630,1748592644880,-165.81959145,0.00021917,2]
[363126631,1748592644889,-3140.91,0.00021917,2]
[363126632,1748592644898,-500.0,0.00021917,2]
[363126633,1748592644908,-3201.85,0.00021917,2]
[363126634,1748592644918,-4354.24,0.00021917,2]
[363126635,1748592644928,-967.63,0.00021917,2]
[363126636,1748592644937,-500.0,0.00021917,2]
[363126637,1748592644947,-420.0,0.00021917,2]
[363126638,1748592644958,-500.0,0.00021917,2]
[363126639,1748592644979,-545.59,0.00021917,2]
[363126640,1748592644994,-1228.72,0.00021917,2]
[363126641,1748592645004,-601.75,0.00021917,2]
[363126642,1748592645013,-1015.9,0.00021917,2]
[363126643,1748592645023,-999.32,0.00021917,2]
[363126644,1748592645032,-1433.17,0.00021917,2]
[363126645,1748592645041,-420.0,0.00021917,2]
[363126646,1748592645050,-500.0,0.00021917,2]
[363126647,1748592645059,-420.0,0.00021917,2]
[363126648,1748592645068,-3312.99,0.00021917,2]
[363126649,1748592645077,-500.0,0.00021917,2]
[363126650,1748592645086,-4479.68,0.00021917,2]
[363126651,1748592645096,-420.0,0.00021917,2]
[363126652,1748592645105,-952.28,0.00021917,2]
[363126653,1748592645115,-3401.55,0.00021917,2]
[363126654,1748592645124,-420.0,0.00021917,2]
[363126655,1748592645133,-708.29,0.00021917,2]
[363126656,1748592645142,-479.22,0.00021917,2]
[363126657,1748592645151,-1472.96,0.00021917,2]
[363126658,1748592645160,-984.68,0.00021917,2]
[363126659,1748592645169,-7456.06,0.00021917,2]
[363126660,1748592645179,-420.0,0.00021917,2]
[363126661,1748592645188,-569.14,0.00021917,2]
[363126662,1748592645198,-434.96,0.00021917,2]
[363126663,1748592645207,-420.0,0.00021917,2]
[363126664,1748592645216,-1269.08,0.00021917,2]
[363126665,1748592645226,-8182.72,0.00021917,2]
[363126666,1748592645235,-12821.95,0.00021917,2]
[363126667,1748592645246,-500.0,0.00021917,2]
[363126668,1748592645256,-447.8,0.00021917,2]
[363126669,1748592645266,-1056.58,0.00021917,2]
[363126670,1748592645276,-420.0,0.00021917,2]
[363126671,1748592645285,-500.0,0.00021917,2]
[363126672,1748592645295,-749.98,0.00021917,2]
[363126673,1748592645304,-420.0,0.00021917,2]
[363126674,1748592645313,-420.0,0.00021917,2]
[363126675,1748592645323,-1749.74,0.00021917,2]
[363126676,1748592645333,-1094.57,0.00021917,2]
[363126677,1748592645343,-540.20194575,0.00021917,2]
[363126678,1748592645354,-420.0,0.00021917,2]
[363126679,1748592645363,-510.95,0.00021917,2]
[363126680,1748592645373,-9594.47,0.00021917,2]
[363126681,1748592645382,-684.68,0.00021917,2]
[363126682,1748592645392,-1255.57,0.00021917,2]
[363126683,1748592645401,-500.0,0.00021917,2]
[363126684,1748592645411,-500.0,0.00021917,2]
[363126685,1748592645420,-1404.48,0.00021917,2]
[363126686,1748592645429,-426.83256011,0.00021917,2]
[363126687,1748592645439,-418.75720894,0.00021917,2]
[363126688,1748592645448,-930.11,0.00021917,2]
[363126689,1748592645457,-420.0,0.00021917,2]
[363126690,1748592645467,-761.7,0.00021917,2]
[363126692,1748592645477,-420.0,0.00021917,2]
[363126693,1748592645486,-1740.59,0.00021917,2]
[363126694,1748592645495,-2867.02,0.00021917,2]
[363126695,1748592645505,-500.0,0.00021917,2]
[363126696,1748592645515,-275.77848789,0.00021917,2]
[363126697,1748592645524,-420.0,0.00021917,2]
[363126698,1748592645533,-420.0,0.00021917,2]
[363126699,1748592645542,-1723.27,0.00021917,2]
[363126700,1748592645551,-641.38,0.00021917,2]
[363126701,1748592645561,-164.05034542,0.00021917,2]
[363126703,1748592645570,-420.0,0.00021917,2]
[363126705,1748592645580,-1086.66,0.00021917,2]
[363126706,1748592645589,-420.0,0.00021917,2]
[363126707,1748592645599,-1086.3,0.00021917,2]
[363126708,1748592645608,-732.89,0.00021917,2]
[363126710,1748592645617,-420.0,0.00021917,2]
[363126711,1748592645626,-500.0,0.00021917,2]
[363126712,1748592645636,-2007.49,0.00021917,2]
[363126713,1748592645644,-835.03,0.00021917,2]
[363126714,1748592645653,-500.0,0.00021917,2]
[363126715,1748592645663,-11293.22,0.00021917,2]
[363126716,1748592645672,-1107.3,0.00021917,2]
[363126719,1748592645681,-420.0,0.00021917,2]
[363126721,1748592645690,-3081.38,0.00021917,2]
[363126724,1748592645706,-420.0,0.00021917,2]
[363126726,1748592645715,-739.32,0.00021917,2]
[363126727,1748592645724,-420.0,0.00021917,2]
[363126728,1748592645735,-4132.65,0.00021917,2]
[363126729,1748592645744,-538.33,0.00021917,2]
[363126730,1748592645754,-1441.62,0.00021917,2]
[363126731,1748592645764,-4382.09,0.00021917,2]
[363126732,1748592645774,-898.95,0.00021917,2]
[363126733,1748592645785,-528.0,0.00021917,2]
[363126734,1748592645794,-790.68,0.00021917,2]
[363126735,1748592645804,-420.0,0.00021917,2]
[363126736,1748592645815,-720.31,0.00021917,2]
[363126737,1748592645825,-1556.02,0.00021917,2]
[363126738,1748592645835,-4308.21,0.00021917,2]
[363126739,1748592645844,-1031.66,0.00021917,2]
[363126740,1748592645854,-420.0,0.00021917,2]
[363126741,1748592645864,-500.0,0.00021917,2]
[363126742,1748592645874,-925.86,0.00021917,2]
[363126743,1748592645884,-810.66,0.00021917,2]
[363126744,1748592645893,-420.0,0.00021917,2]
[363126745,1748592645903,-809.38,0.00021917,2]
[363126746,1748592645913,-420.0,0.00021917,2]
[363126747,1748592645923,-420.0,0.00021917,2]
[363126748,1748592645933,-23514.16,0.00021917,2]
[363126749,1748592645943,-1341.25,0.00021917,2]
[363126750,1748592645953,-2510.41,0.00021917,2]
[363126751,1748592645963,-5102.46,0.00021917,2]
[363126752,1748592645973,-577.44,0.00021917,2]
[363126753,1748592645983,-420.0,0.00021917,2]
[363126754,1748592645992,-500.0,0.00021917,2]
[363126755,1748592646002,-2987.55,0.00021917,2]
[363126756,1748592646011,-156.35,0.00021917,2]
[363126757,1748592646021,-500.0,0.00021917,2]
[363126758,1748592646031,-476.00454792,0.00021917,2]
[363126759,1748592646040,-616.45,0.00021917,2]
[363126760,1748592646050,-1465.15,0.00021917,2]
[363126761,1748592646059,-1518.07,0.00021917,2]
[363126762,1748592646069,-1007.65,0.00021917,2]
[363126763,1748592646082,-21375.0,0.00021917,2]
[363126764,1748592646092,-420.0,0.00021917,2]
[363126765,1748592646101,-606.13,0.00021917,2]
[363126766,1748592646111,-801.59,0.00021917,2]
[363126767,1748592646121,-420.0,0.00021917,2]
[363126769,1748592646130,-420.0,0.00021917,2]
[363126771,1748592646139,-420.0,0.00021917,2]
[363126773,1748592646150,-736.64,0.00021917,2]
[363126775,1748592646160,-661.7,0.00021917,2]
[363126777,1748592646171,-3052.03,0.00021917,2]
[363126779,1748592646180,-420.0,0.00021917,2]
[363126781,1748592646190,-2565.8,0.00021917,2]
[363126783,1748592646200,-891.72,0.00021917,2]
[363126785,1748592646210,-420.0,0.00021917,2]
[363126787,1748592646220,-420.0,0.00021917,2]
[363126789,1748592646229,-500.0,0.00021917,2]
[363126791,1748592646239,-1439.7,0.00021917,2]
[363126793,1748592646249,-500.0,0.00021917,2]
[363126795,1748592646259,-420.0,0.00021917,2]
[363126797,1748592646269,-420.0,0.00021917,2]
[363126800,1748592646279,-500.0,0.00021917,2]
[363126803,1748592646290,-1964.58,0.00021917,2]
[363126806,1748592646300,-420.0,0.00021917,2]
[363126808,1748592646309,-1304.07,0.00021917,2]
[363126810,1748592646320,-420.0,0.00021917,2]
[363126812,1748592646330,-420.0,0.00021917,2]
[363126813,1748592646340,-420.0,0.00021917,2]
[363126814,1748592646350,-2416.19,0.00021917,2]
[363126815,1748592646361,-420.0,0.00021917,2]
[363126816,1748592646371,-1171.82,0.00021917,2]
[363126817,1748592646381,-500.0,0.00021918,2]
[363126818,1748592646392,-500.0,0.00021918,2]
[363126819,1748592646402,-500.0,0.00021918,2]
[363126820,1748592646412,-300.0,0.00021918,2]
[363126821,1748592646422,-3970.2852993,0.00021925,2]
[363126822,1748592646432,-1527.31772759,0.00021931,2]
[363126823,1748592646442,-4801.44794114,0.00021931,2]
[363126824,1748592646453,-171.24525055,0.00021945,2]
[363126825,1748592646463,-3970.2852993,0.00021952,2]
[363126826,1748592646473,-152.20915799,0.00021959,2]
[363126827,1748592646482,-498.04109732,0.00021973,2]
[363126828,1748592646493,-500.69846167,0.00021973,2]
[363126829,1748592646503,-168.45127657,0.00021973,2]
[363126830,1748592646513,-500.0,0.00021973,2]
[363126831,1748592646524,-159.532442,0.00021973,2]
[363126832,1748592646534,-500.0,0.00021973,2]
[363126833,1748592646544,-500.0,0.00021973,2]
[363126834,1748592646555,-527.84452092,0.00021973,2]
[363126835,1748592646564,-501.36825752,0.00021973,2]
[363126836,1748592646574,-503.13693515,0.00021973,2]
[363126837,1748592646586,-500.0,0.00021973,2]
[363126838,1748592646596,-500.0,0.00021973,2]
[363126839,1748592646606,-500.0,0.00021973,2]
[363126840,1748592646617,-500.0,0.00021973,2]
[363126841,1748592646627,-502.80402671,0.00021973,2]
[363126842,1748592646637,-500.0,0.00021973,2]
[363126843,1748592646647,-500.70986042,0.00021973,2]
[363126844,1748592646656,-500.0,0.00021973,2]
[363126845,1748592646666,-503.83913637,0.00021973,2]
[363126846,1748592646676,-500.0,0.00021973,2]
[363126847,1748592646686,-3970.2852993,0.00021979,2]
[363126848,1748592646699,-1089.449738,0.00021981,3]
[363126849,1748592646709,-1527.31772759,0.00021988,2]
[363126850,1748592646719,-4801.44794114,0.00021988,2]
[363126851,1748592646729,-178.80191287,0.0002199,2]
[363126852,1748592646740,-500.0,0.00021999,2]
[363126853,1748592646750,-160767.22319852,0.00022,2]
[363126854,1748592646760,-166.66666667,0.00022,2]
[363126855,1748592646772,-207.0,0.00022,2]
[363126856,1748592646781,-166.0,0.00022,2]
[363126857,1748592646791,-3970.2852993,0.00022006,2]
[363126858,1748592646801,-3970.2852993,0.00022033,2]
[363126859,1748592646811,-1527.31772759,0.00022045,2]
[363126860,1748592646821,-4801.44794114,0.00022045,2]
[363126861,1748592646832,-3970.2852993,0.0002206,2]
[363126862,1748592646842,-579.50301407,0.00022069,2]
[363126863,1748592646852,-166.66666667,0.00022082,2]
[363126864,1748592646862,-3970.2852993,0.00022087,2]
[363126865,1748592646872,-169.10817303,0.00022091,2]
[363126866,1748592646882,-8263.48252436,0.00022098,2]
[363126867,1748592646892,-1527.31772759,0.00022102,2]
[363126868,1748592646902,-4801.44794114,0.00022102,2]
[363126869,1748592646912,-3970.2852993,0.00022114,2]
[363126870,1748592646924,-3970.2852993,0.00022141,2]
[363126871,1748592646934,-1527.31772759,0.00022159,2]
[363126872,1748592646944,-4801.44794114,0.00022159,2]
[363126873,1748592646955,-150.0,0.0002216,2]
[363126874,1748592646966,-166.66666667,0.00022164,2]
[363126875,1748592646976,-3970.2852993,0.00022168,2]
[363126876,1748592646987,-621.0,0.0002217,2]
[363126877,1748592646997,-500.0,0.00022173,2]
[363126878,1748592647009,-500.0,0.00022173,2]
[363126879,1748592647022,-502.24751098,0.00022173,2]
[363126880,1748592647033,-500.0,0.00022173,2]
[363126881,1748592647043,-500.0,0.00022173,2]
[363126882,1748592647055,-500.0,0.00022173,2]
[363126883,1748592647066,-500.0,0.00022173,2]
[363126884,1748592647076,-500.0,0.00022173,2]
[363126885,1748592647087,-184.14,0.00022184,2]
[363126886,1748592647097,-500.0,0.00022184,2]
[363126887,1748592647108,-151.0,0.00022185,7]
[363126888,1748592647120,-500.0,0.0002219,2]
[363126889,1748592647130,-500.0,0.0002219,2]
[363126890,1748592647143,-388.31603243,0.0002219,2]
[363126891,1748592647153,-500.0,0.0002219,2]
[363126892,1748592647163,-500.0,0.0002219,2]
[363126893,1748592647173,-500.0,0.0002219,2]
[363126894,1748592647182,-847.15946128,0.0002219,2]
[363126895,1748592647192,-500.0,0.0002219,2]
[363126896,1748592647201,-309.27829962,0.0002219,2]
[363126897,1748592647211,-500.0,0.0002219,2]
[363126898,1748592647222,-500.0,0.0002219,2]
[363126899,1748592647232,-500.0,0.0002219,2]
[363126900,1748592647243,-310.28425939,0.0002219,2]
[363126901,1748592647254,-153.978837,0.00022191,7]
[363126902,1748592647264,-151.0,0.00022191,7]
[363126903,1748592647274,-151.0,0.00022191,7]
[363126904,1748592647284,-151.0,0.00022191,7]
[363126905,1748592647294,-151.0,0.00022191,7]
[363126906,1748592647304,-151.0,0.00022191,7]
[363126907,1748592647314,-151.0,0.00022191,7]
[363126908,1748592647325,-151.0,0.00022191,7]
[363126909,1748592647336,-151.0,0.00022191,7]
[363126910,1748592647346,-151.0,0.00022191,7]
[363126911,1748592647356,-274.789184,0.00022191,7]
[363126912,1748592647366,-1614.687657,0.00022191,2]
[363126913,1748592647377,-1365.304768,0.00022191,2]
[363126914,1748592647387,-436.86,0.00022191,2]
[363126915,1748592647396,-511.56,0.00022191,2]
[363126916,1748592647406,-465.97725069,0.00022191,2]
[363126917,1748592647416,-420.0,0.00022191,2]
[363126918,1748592647426,-420.0,0.00022191,2]
[363126919,1748592647436,-525.97,0.00022191,2]
[363126920,1748592647446,-695.25,0.00022191,2]
[363126921,1748592647456,-420.0,0.00022191,2]
[363126922,1748592647466,-420.0,0.00022191,2]
[363126923,1748592647479,-435.44,0.00022191,2]
[363126924,1748592647492,-451.08,0.00022191,2]
[363126925,1748592647504,-420.0,0.00022191,2]
[363126926,1748592647514,-420.0,0.00022191,2]
[363126927,1748592647524,-420.0,0.00022191,2]
[363126928,1748592647534,-672.66,0.00022191,2]
[363126929,1748592647544,-420.0,0.00022191,2]
[363126930,1748592647554,-420.0,0.00022191,2]
[363126931,1748592647564,-420.0,0.00022191,2]
[363126932,1748592647574,-420.0,0.00022191,2]
[363126933,1748592647584,-420.0,0.00022191,2]
[363126934,1748592647594,-420.0,0.00022191,2]
[363126935,1748592647604,-420.0,0.00022191,2]
[363126936,1748592647614,-420.0,0.00022191,2]
[363126937,1748592647624,-420.0,0.00022191,2]
[363126938,1748592647635,-420.0,0.00022191,2]
[363126939,1748592647645,-420.0,0.00022191,2]
[363126940,1748592647655,-420.0,0.00022191,2]
[363126941,1748592647664,-635.6,0.00022191,2]
[363126942,1748592647674,-420.0,0.00022191,2]
[363126943,1748592647685,-494.07,0.00022191,2]
[363126944,1748592647697,-161.08700687,0.00022191,2]
[363126945,1748592647707,-420.0,0.00022191,2]
[363126946,1748592647717,-420.0,0.00022191,2]
[363126947,1748592647727,-420.0,0.00022191,2]
[363126948,1748592647737,-420.0,0.00022191,2]
[363126949,1748592647747,-164.17552617,0.00022191,2]
[363126950,1748592647757,-420.0,0.00022191,2]
[363126951,1748592647767,-420.0,0.00022191,2]
[363126952,1748592647778,-500.0,0.00022191,2]
[363126953,1748592647788,-420.0,0.00022191,2]
[363126954,1748592647798,-432.13,0.00022191,2]
[363126955,1748592647808,-1396.34,0.00022191,2]
[363126956,1748592647817,-480.11,0.00022191,2]
[363126957,1748592647828,-420.0,0.00022191,2]
[363126958,1748592647838,-517.4,0.00022191,2]
[363126959,1748592647847,-444.52,0.00022191,2]
[363126960,1748592647857,-420.0,0.00022191,2]
[363126961,1748592647867,-507.61917094,0.00022191,2]
[363126962,1748592647877,-873.96,0.00022191,2]
[363126963,1748592647886,-521.64,0.00022191,2]
[363126964,1748592647895,-474.11,0.00022191,2]
[363126965,1748592647905,-584.73,0.00022191,2]
[363126966,1748592647915,-778.5,0.00022191,2]
[363126967,1748592647924,-1030.8,0.00022191,2]
[363126968,1748592647934,-420.0,0.00022191,2]
[363126969,1748592647944,-506.77983329,0.00022191,2]
[363126970,1748592647953,-420.0,0.00022191,2]
[363126971,1748592647963,-420.0,0.00022191,2]
[363126972,1748592647973,-420.0,0.00022191,2]
[363126973,1748592647983,-1254.81,0.00022191,2]
[363126974,1748592647993,-908.97,0.00022191,2]
[363126975,1748592648003,-298.44938816,0.00022191,2]
[363126976,1748592648013,-420.0,0.00022191,2]
[363126977,1748592648236,-420.0,0.00022191,2]
[363126978,1748592648247,-500.0,0.00022191,2]
[363126979,1748592648257,-572.57,0.00022191,2]
[363126980,1748592648267,-524.49194438,0.00022191,2]
[363126981,1748592648276,-420.0,0.00022191,2]
[363126982,1748592648286,-420.0,0.00022191,2]
[363126983,1748592648296,-420.0,0.00022191,2]
[363126984,1748592648306,-476.4,0.00022191,2]
[363126985,1748592648316,-249.88045561,0.00022191,2]
[363126986,1748592648326,-393.30300329,0.00022191,2]
[363126987,1748592648337,-312.20838336,0.00022191,2]
[363126988,1748592648347,-420.0,0.00022191,2]
[363126989,1748592648357,-684.88,0.00022191,2]
[363126990,1748592648367,-167.21496154,0.00022191,2]
[363126991,1748592648378,-420.0,0.00022191,2]
[363126992,1748592648388,-167.57326758,0.00022191,2]
[363126993,1748592648403,-420.0,0.00022191,2]
[363126994,1748592648418,-420.0,0.00022191,2]
[363126995,1748592648430,-420.0,0.00022191,2]
[363126996,1748592648441,-857.34,0.00022191,2]
[363126997,1748592648451,-978.18,0.00022191,2]
[363126998,1748592648461,-707.26,0.00022191,2]
[363126999,1748592648472,-420.0,0.00022191,2]
[363127000,1748592648482,-447.25,0.00022191,2]
[363127001,1748592648492,-602.06,0.00022191,2]
[363127002,1748592648501,-160.0,0.00022191,2]
[363127003,1748592648511,-420.0,0.00022191,2]
[363127004,1748592648521,-164.14711311,0.00022191,2]
[363127005,1748592648531,-687.96,0.00022191,2]
[363127006,1748592648541,-420.0,0.00022191,2]
[363127007,1748592648551,-525.38,0.00022191,2]
[363127008,1748592648561,-794.45,0.00022191,2]
[363127009,1748592648570,-420.0,0.00022191,2]
[363127010,1748592648580,-420.0,0.00022191,2]
[363127011,1748592648591,-420.0,0.00022191,2]
[363127012,1748592648601,-420.0,0.00022191,2]
[363127013,1748592648611,-420.0,0.00022191,2]
[363127014,1748592648621,-1491.21,0.00022191,2]
[363127015,1748592648630,-420.0,0.00022191,2]
[363127016,1748592648640,-420.0,0.00022191,2]
[363127017,1748592648650,-420.0,0.00022191,2]
[363127018,1748592648660,-420.0,0.00022191,2]
[363127019,1748592648670,-420.0,0.00022191,2]
[363127020,1748592648680,-420.0,0.00022191,2]
[363127021,1748592648690,-420.0,0.00022191,2]
[363127022,1748592648703,-617.5,0.00022191,2]
[363127023,1748592648713,-420.0,0.00022191,2]
[363127024,1748592648723,-420.0,0.00022191,2]
[363127025,1748592648732,-420.0,0.00022191,2]
[363127026,1748592648742,-420.0,0.00022191,2]
[363127027,1748592648752,-420.0,0.00022191,2]
[363127028,1748592648762,-420.0,0.00022191,2]
[363127029,1748592648771,-879.43,0.00022191,2]
[363127030,1748592648782,-352.24070201,0.00022191,2]
[363127031,1748592648793,-616.63,0.00022191,2]
[363127032,1748592648802,-637.71,0.00022191,2]
[363127033,1748592648812,-492.69,0.00022191,2]
[363127034,1748592648821,-420.0,0.00022191,2]
[363127035,1748592648831,-165.203388,0.00022191,2]
[363127036,1748592648841,-420.0,0.00022191,2]
[363127037,1748592648851,-420.0,0.00022191,2]
[363127038,1748592648861,-453.42,0.00022191,2]
[363127039,1748592648872,-2174.18,0.00022191,2]
[363127040,1748592648881,-964.74,0.00022191,2]
[363127041,1748592648891,-420.0,0.00022191,2]
[363127042,1748592648901,-817.81,0.00022191,2]
[363127043,1748592648911,-667.05,0.00022191,2]
[363127044,1748592648920,-1300.91,0.00022191,2]
[363127045,1748592648930,-420.0,0.00022191,2]
[363127046,1748592648940,-1558.44,0.00022191,2]
[363127047,1748592648950,-420.0,0.00022191,2]
[363127048,1748592648959,-420.0,0.00022191,2]
[363127049,1748592648970,-420.0,0.00022191,2]
[363127050,1748592648979,-1141.13,0.00022191,2]
[363127051,1748592648989,-420.0,0.00022191,2]
[363127052,1748592648999,-1073.25,0.00022191,2]
[363127053,1748592649009,-524.52,0.00022191,2]
[363127054,1748592649019,-420.0,0.00022191,2]
[363127055,1748592649028,-420.0,0.00022191,2]
[363127056,1748592649038,-1023.1,0.00022191,2]
[363127057,1748592649048,-2689.39,0.00022191,2]
[363127058,1748592649058,-758.73,0.00022191,2]
[363127059,1748592649067,-160.0,0.00022191,2]
[363127060,1748592649077,-654.28,0.00022191,2]
[363127061,1748592649087,-420.0,0.00022191,2]
[363127062,1748592649097,-780.91,0.00022191,2]
[363127063,1748592649107,-1249.93,0.00022191,2]
[363127064,1748592649116,-384.40943215,0.00022191,2]
[363127065,1748592649126,-160.0,0.00022191,2]